Workbook

Sheet All Workbook
B2: Calculate All Open Workbooks
B4: Product | C4: Quantity | D4: Unit Price | E4: Total Price
B5: Laptop | C5: 15 | D5: 700 | E5: =C5*D5 -> 10500
B6: Keyboard | C6: 134 | D6: 25 | E6: =C6*D6 -> 3350
B7: Mouse | C7: 288 | D7: 15 | E7: 4320
B8: Headset | C8: 90 | D8: 35 | E8: 3150
B9: Printer | C9: 54 | D9: 100 | E9: 5400

Sheet Active Sheet
B2: Calculate Active WorkSheet
B4: Product | C4: Quantity | D4: Unit Price | E4: Total Price
B5: Laptop | C5: 12 | D5: 700 | E5: =C5*D5 -> 8400
B6: Keyboard | C6: 114 | D6: 25 | E6: =C6*D6 -> 2850
B7: Mouse | C7: 254 | D7: 15 | E7: 3810
B8: Headset | C8: 56 | D8: 35 | E8: 1960
B9: Printer | C9: 67 | D9: 100 | E9: 6700

Sheet Sheet 3
B2: Calculate Specific Worksheet
B4: Product | C4: Quantity | D4: Unit Price | E4: Total Price
B5: Laptop | C5: 14 | D5: 700 | E5: =C5*D5 -> 9800
B6: Keyboard | C6: 184 | D6: 25 | E6: =C6*D6 -> 4600
B7: Mouse | C7: 274 | D7: 15 | E7: 4110
B8: Headset | C8: 112 | D8: 35 | E8: 3920
B9: Printer | C9: 57 | D9: 100 | E9: 5700

Sheet Range
B2: Calculate a Range Using VBA
B4: Product | C4: Quantity | D4: Unit Price | E4: Total Price
B5: Laptop | C5: 9 | D5: 700 | E5: =C5*D5 -> 6300
B6: Keyboard | C6: 284 | D6: 25 | E6: =C6*D6 -> 7100
B7: Mouse | C7: 274 | D7: 15 | E7: 4110
B8: Headset | C8: 122 | D8: 35 | E8: 4270
B9: Printer | C9: 54 | D9: 100 | E9: 5400

Sheet Cell
B2: Calculate a Single Cell
B4: Product | C4: Quantity | D4: Unit Price | E4: Total Price
B5: Laptop | C5: 12 | D5: 700 | E5: =C5*D5 -> 8400
B6: Keyboard | C6: 254 | D6: 25 | E6: =C6*D6 -> 6350
B7: Mouse | C7: 264 | D7: 15 | E7: 3960
B8: Headset | C8: 102 | D8: 35 | E8: 3570
B9: Printer | C9: 74 | D9: 100 | E9: 7400

Sheet Selection
B2: Force Calculate Selected Cells
B4: Product | C4: Quantity | D4: Unit Price | E4: Total Price
B5: Laptop | C5: 13 | D5: 700 | E5: =C5*D5 -> 9100
B6: Keyboard | C6: 255 | D6: 25 | E6: =C6*D6 -> 6375
B7: Mouse | C7: 256 | D7: 15 | E7: 3840
B8: Headset | C8: 154 | D8: 35 | E8: 5390
B9: Printer | C9: 67 | D9: 100 | E9: 6700
